Cogmind - Beta 11.1 @@@ ROGUE MODE // 2022.06.10 @ 17:58:35 Player: ChromeKnight Result: Destroyed by D-53 Grenadier with Mini Grenade Launcher Performance ------------- Evolutions (0) 0 Regions Visited (2) 400 Robots Destroyed (21) 105 Value Destroyed (404) 404 Prototype IDs (0) 0 Alien Tech Used (0) 0 Bonus (60) 60 TOTAL SCORE: 969 Bonus ------- Follower Combat Kills 60 Cogmind --------- Core Integrity 0/250 Matter 300/300 Energy 160/160 System Corruption 1% Temperature Cool (0) Movement Walking (120) Location -10/Mines Parts ------- > --- POWER (1) -------- Light Nuclear Core > --- PROPULSION (2) --- Aluminum Leg Aluminum Leg > --- UTILITY (2) ------ Improved Heat Sink Medium Storage Unit > --- WEAPON (2) ------- (None) > --- INVENTORY (10) --- Aluminum Leg Aluminum Leg Aluminum Leg Aluminum Leg Heat Sink Targeting Computer Medium Laser Medium Laser Medium Laser Grenade Launcher Peak State ------------ > --- POWER ------------ Light Nuclear Core > --- PROPULSION ------- Aluminum Leg Aluminum Leg > --- UTILITY ---------- Improved Heat Sink Small Storage Unit > --- WEAPON ----------- Medium Laser Particle Gun > --- INVENTORY -------- Light Nuclear Core Aluminum Leg Aluminum Leg Aluminum Leg Aluminum Leg Aluminum Leg Heat Sink Small Laser [Rating: 13] Favorites ----------- Power Light Nuclear Core Engine Ion Engine Power Core Light Nuclear Core Propulsion Aluminum Leg Treads Light Treads Leg Aluminum Leg Utility Improved Heat Sink Device Improved Heat Sink Storage Medium Storage Unit Weapon Medium Laser Energy Gun Medium Laser Ballistic Gun Light Assault Rifle Build | -11 -10 -10 ------- Run | Scr Mat Min Slots Evolved . | . . . Power . | . . . Propulsion . | . . . Utility . | . . . Weapon . | . . . Parts Attached 20 | 7 12 1 Power 2 | 1 1 . Engine 1 | 1 . . Core 1 | . 1 . Reactor . | . . . Propulsion 7 | 2 5 . Treads 2 | 2 . . Leg 5 | . 5 . Wheel . | . . . Hover . | . . . Flight . | . . . Utility 7 | 2 4 1 Device 4 | 1 2 1 Storage 3 | 1 2 . Processor . | . . . Hackware . | . . . Protection . | . . . Artifact . | . . . Weapon 4 | 2 2 . Energy Gun 3 | 1 2 . Energy Cannon . | . . . Ballistic Gun 1 | 1 . . Ballistic Cannon . | . . . Launcher . | . . . Special Weapon . | . . . Impact Weapon . | . . . Slashing Weapon . | . . . Piercing Weapon . | . . . Special Melee Weapon . | . . . Unidentified Prototypes . | . . . Parts Lost 2 | . . 2 Power . | . . . Propulsion . | . . . Utility . | . . . Weapon 2 | . . 2 Highest Loss Streak 2 | . . 2 To Critical Strikes . | . . . Average Slot Usage (%) 99 | . 99 100 Engine 2 | . 4 . Core 11 | . 9 14 Treads 5 | . 8 . Leg 22 | . 19 28 Device 14 | . 14 14 Storage 14 | . 14 14 Energy Gun 26 | . 24 28 Ballistic Gun 1 | . 2 . Naked Turns . | . . . Heaviest Build 51 | 14 51 21 Greatest Support 40 | 40 40 20 Greatest Overweight (x) 2 | . 2 1 Average Overweight (x) . | . . . Largest Inventory Capacity 20 | 8 20 10 Average Capacity 9 | 7 9 10 Most Carried 10 | . 10 10 Average Carried 7 | . 7 10 Final Capacity 10 | 8 10 10 Final Carried 10 | . 10 10 Class Distribution -------------------- 76% | Scavenger-Mutant 23% | Mutant Dominant Class ---------------- Scavenger-Mutant | -10/Materials Scavenger-Mutant | -10/Mines Resources | -11 -10 -10 ----------- Run | Scr Mat Min Matter Collected 424 | 279 135 10 Remotely 34 | 19 15 . Salvage Created 659 | 113 499 47 Parts 56 | 10 40 6 Haulers Intercepted 2 | . 2 . Recyclers Shooed 2 | 1 . 1 Parts Field Recycled . | . . . Retrieved Matter . | . . . Parts Self-Destructed . | . . . Prevented . | . . . Kills | -11 -10 -10 ------- Run | Scr Mat Min Combat Hostiles Destroyed 11 | . 8 3 Guns 11 | . 8 3 Classes Destroyed 8 | 3 4 1 Worker 4 | 2 2 . Tunneler 1 | 1 . . Hauler 2 | . 2 . Recycler 1 | 1 . . Operator 1 | . 1 . Watcher 1 | . 1 . Swarmer 3 | . . 3 Grunt 8 | . 8 . Best Kill Streak 4 | 4 3 3 Combat Bots Only 3 | . 2 3 Max Kills in Single Turn 1 | 1 1 1 Gunslinging . | . . . Exploded . | . . . Melee . | . . . Uniques/NPCs Destroyed . | . . . Combat | -11 -10 -10 -------- Run | Scr Mat Min Damage Taken 780 | . 373 407 Core 268 | . 98 170 Absorbed by Shields . | . . . Core Remaining (%) 100 | 100 . . Volleys Fired 73 | 9 54 10 Largest 2 | 2 2 2 Hottest 115 | 70 115 115 Shots Fired 146 | 18 108 20 Gun 146 | 18 108 20 Cannon . | . . . Launcher . | . . . Special . | . . . Kinetic 24 | 9 15 . Thermal 122 | 9 93 20 Explosive . | . . . Electromagnetic . | . . . Robot Hit Streak 10 | 5 10 2 Robot Miss Streak 4 | 2 3 4 Penetration Max . | . . . Secondary Targets 2 | . . 2 Max Gunslinging Chain 1 | . . 1 Shots Hit Robots 88 | 11 68 9 Core Hits 37 | 7 27 3 Critical Kills . | . . . Critical Parts Destroyed . | . . . Critical Strikes 7 | 1 4 2 Burn 7 | 1 4 2 Melee Attacks . | . . . Impact . | . . . Slashing . | . . . Piercing . | . . . Sneak Attacks . | . . . Combat Hostiles . | . . . Follow-up Attacks . | . . . Damage Inflicted 1088 | 119 842 127 Guns 1087 | 119 841 127 Cannons . | . . . Explosions . | . . . Melee . | . . . Ramming 1 | . 1 . Kinetic 123 | 42 81 . Thermal 964 | 77 760 127 Explosive . | . . . Electromagnetic . | . . . Impact . | . . . Slashing . | . . . Piercing . | . . . Highest Corruption 1 | . 1 1 Average Corruption 1 | . 1 1 Corruption Purged . | . . . Corruption Blocked . | . . . Effects 5 | . . 5 Message Errors 2 | . . 2 Heat Flow Errors 1 | . . 1 Parts Rejected 1 | . . 1 Misfires 1 | . . 1 Overload Shots . | . . . Overflow Damage . | . . . Projectiles . | . . . Explosions . | . . . Melee . | . . . Knockbacks . | . . . Impact . | . . . Kinetic . | . . . Secondary . | . . . Self-Inflicted Damage . | . . . Shots . | . . . Rammed 1 | . 1 . Targets Rammed 1 | . 1 . Kicked . | . . . Crushed . | . . . Highest Temperature 236 | 80 236 126 Average Temperature 51 | 38 54 46 Received Heat Transfer 297 | . 267 30 Siege Activations . | . . . Robots Corrupted . | . . . Combat Hostiles . | . . . Parts Fried . | . . . Impact Corruptions . | . . . Robots Melted . | . . . Combat Hostiles . | . . . Parts Melted 5 | . 5 . Heat Transferred 3135 | 296 2358 481 Parts Sabotaged . | . . . Parts Stolen . | . . . Parts Stripped . | . . . Power Chain Reactions . | . . . Missiles Intercepted . | . . . Alert | -11 -10 -10 ------- Run | Scr Mat Min Peak Influence 218 | 20 218 148 Initial 13 | . 13 . Average 67 | 5 80 61 Maximum Alert Level 1 | . 1 . Low Security (%) 92 | 100 85 100 Level 1 7 | . 14 . Level 2 . | . . . Level 3 . | . . . Level 4 . | . . . Level 5 . | . . . High Security . | . . . Max Security . | . . . Squads Dispatched 1 | . 1 . Investigation . | . . . Extermination . | . . . Reinforcement 1 | . 1 . Assault . | . . . Garrison . | . . . Intercept . | . . . Searches Triggered . | . . . Construction Impeded . | . . . Haulers Reinforced . | . . . Active Scanning Responses . | . . . Cargo Convoy Interrupts . | . . . Stealth | -11 -10 -10 --------- Run | Scr Mat Min Distress Signals 1 | . 1 . Communications Jammed . | . . . Distress Signals . | . . . Times Spotted 21 | . 14 7 Peak Tracking Total 3 | . 3 3 Tactical Retreats 1 | . 1 . Traps | -11 -10 -10 ------- Run | Scr Mat Min Traps Triggered 1 | . 1 . Indirectly . | . . . Trap Hack Attempts . | . . . Triggered . | . . . Disarmed . | . . . Reprogrammed . | . . . Reused . | . . . Traps Extracted . | . . . Installed . | . . . Triggered . | . . . Machines | -11 -10 -10 ---------- Run | Scr Mat Min Machines Disabled 1 | . . 1 Max in Single Turn . | . . . Machines Sabotaged . | . . . Garrisons Compromised . | . . . Overloaded Fab Kills . | . . . Hacking | -11 -10 -10 --------- Run | Scr Mat Min Machines Accessed 1 | . 1 . Terminals 1 | . 1 . Fabricators . | . . . Repair Stations . | . . . Recycling Units . | . . . Scanalyzers . | . . . Garrison Access . | . . . Total Hacks 1 | . 1 . Successful 1 | . 1 . Failed . | . . . Catastrophic . | . . . Database Lockouts . | . . . Manual 1 | . 1 . Terminals 1 | . 1 . Fabricators . | . . . Repair Stations . | . . . Recycling Units . | . . . Scanalyzers . | . . . Garrison Access . | . . . Terminal Hacks . | . . . Fabricator Hacks . | . . . Repair Station Hacks . | . . . Recycling Unit Hacks . | . . . Scanalyzer . | . . . Garrison Access Hacks . | . . . Unauthorized Hacks 1 | . 1 . Terminals 1 | . 1 . Botnet 1 | . 1 . Fabricators . | . . . Repair Stations . | . . . Recycling Units . | . . . Scanalyzers . | . . . Garrison Access . | . . . Data Cores Recovered . | . . . Used . | . . . Hacking Detections 1 | . 1 . Full Trace Events . | . . . Feedback Events . | . . . Feedback Blocked . | . . . Robot Schematics Acquired . | . . . Robots Built . | . . . Authchips . | . . . Time . | . . . Total Robot Build Rating . | . . . Part Schematics Acquired . | . . . Parts Built . | . . . Authchips . | . . . Time . | . . . Total Part Build Rating . | . . . Parts Repaired . | . . . Time . | . . . Parts Recycled . | . . . Recycled Matter . | . . . Retrieved Matter . | . . . Retrieved Components . | . . . Parts Scanalyzed . | . . . Part Schematics Acquired . | . . . Parts Damaged . | . . . Bothacking | -11 -10 -10 ------------ Run | Scr Mat Min Used RIF Installer . | . . . Robots Hacked . | . . . Non-combat . | . . . Combat . | . . . Robot Hacks Applied . | . . . Relay Couplers Released . | . . . Fabnet Peak Effective % . | . . . Robots Rewired . | . . . Allies Hacked . | . . . Hacks Repelled . | . . . Allies | -11 -10 -10 -------- Run | Scr Mat Min Total Allies 3 | . . 3 Largest Group 3 | . . 3 Highest-Rated Group 40 | . . 40 Highest-Rated Ally 16 | . . 16 Total Orders 1 | . . 1 STAY 1 | . . 1 Ally Attacks 12 | . . 12 Total Damage 97 | . . 97 Kills 2 | . . 2 Allies Corrupted . | . . . Allies Melted . | . . . Intel | -11 -10 -10 ------- Run | Scr Mat Min Robot Analysis Total . | . . . Derelict Logs Recovered 1 | . . 1 Drone Launches . | . . . Drone Recoveries . | . . . Exploration | -11 -10 -10 ------------- Run | Scr Mat Min Turns Passed 1706 | 144 928 634 Spaces Moved 793 | 74 415 304 Core 8 | 8 . . Treads 167 | 66 101 . Legs 618 | . 314 304 Wheels . | . . . Hover . | . . . Flight . | . . . Fastest Speed 50 | 50 120 120 Average Speed 175 | 148 169 189 Slowest Speed 260 | 160 260 190 Overloaded Moves . | . . . Propulsion Burnouts . | . . . Robots Hopped . | . . . Cave-ins Triggered . | . . . Exploration Rate (%) 42 | 5 62 61 Regions Visited 2 Branch Regions 1 Pre-discovered Areas . | . . . Known Exits Taken . | . . . Unknown Exits Taken 2 | 1 1 . Scrap Searched 1 | . . 1 Spaces Dug . | . . . Terrain Destroyed . | . . . Melee . | . . . Projectile . | . . . AOE . | . . . Terrain Rammed . | . . . Walls Destroyed . | . . . Machines Disabled . | . . . Actions | -11 -10 -10 --------- Run | Scr Mat Min Total 977 | 89 545 343 Wait 57 | . 29 28 Move 791 | 73 414 304 Hop . | . . . Pick Up 18 | . 18 . Fast Attach 11 | 7 3 1 Attach 2 | . 2 . Detach . | . . . Swap 7 | . 7 . Drop 17 | . 17 . Fire 73 | 9 54 10 Melee . | . . . Ram . | . . . Kick . | . . . Crush 1 | . 1 . Escape Stasis . | . . . Rewire . | . . . Trap . | . . . Miscellaneous . | . . . Route ------- -11/Scrapyard -10/Materials (discovered 3 exits: [*Mat x2] / [*Min]) -10/Mines (discovered 2 exits: [*Mat x2]) History --------- Turn | Location | Event 4 | -11/Scrapyard | Discovered new exit (range 16) 145 | -11/Scrapyard | Entered Materials 317 | -10/Materials | Build established: Mutant 492 | -10/Materials | Discovered new exit (range 3) 616 | -10/Materials | Discovered new exit (range 10) 705 | -10/Materials | Build established: Scavenger-Mutant 1050 | -10/Materials | Discovered new exit (range 10) 1073 | -10/Materials | Entered Mines 1077 | -10/Mines | Met a Derelict bent on vengeance 1079 | -10/Mines | Assisted by bots powering up and referring to "LRC-V3" 1283 | -10/Mines | Core integrity fell below 50% 1428 | -10/Mines | Discovered new exit (range 8) 1430 | -10/Mines | Learned 4 Materials zone layouts 1506 | -10/Mines | Discovered new exit (range 10) 1691 | -10/Mines | Assembled infested the area 1704 | -10/Mines | Core integrity fell below 20% 1707 | -10/Mines | Destroyed by D-53 Grenadier with Mini Grenade Launcher Last Messages --------------- 01494_ K-01 Serf cleans the Plasma Injector. 01505_ 28-961(g): "TASTE MY VENGEANCE!" 01506_ EXIT=FOUND 01510_ System corrupted: FCS attempts to trigger Particle Gun. 01510_ System corrupted: Particle Gun misfires. 01539_ System corrupted: Heat flow error (+137). 01589_ &UCEBPXZ I14 TIAOEL|MV/6 01603_ Searching scrap... 01603_ Found Ion Engine. 01603_ Found Sensor Array. 01603_ Found Welding Torch. 01603_ Found 18 Matter. 01664_ 3IRV>ZMNWE9KQVP/SUD6KAKBAYE2GUR=FP 01691_ ALERT: Infestation in the mines, dispatching Demolisher response squad. 01700_ C-30 ARC bursts open, deploying its payload. 01700_ D-53 Grenadier unfolds itself. 01703_ Particle Gun destroyed. 01704_ The unstable cave ceiling collapses. 01707_ Med. Laser destroyed. Map ----- +----------------------------------------------------+ | | | | | | | | | | | ?????????????????????????????????????????????????? | | ?????????????????????????????????????????????????? | | ?????????????????????????????????????????????????? | | ?????????????????????????????????????????????????? | | ?????????????????????????????????????????????????? | | ?????????????????????????????????????????????????? | | ?????????????????????????????????????????????????? | | ?????????????????????????????????????????????????? | | ?????????????????????????????????????????????????? | | ?????????????????????????????????????????????????? | | ?????????????????????????????????????????????????? | | ######???????????????????????????????????????????? | | # ####????????????????????????????????????????? | | ##??????????????????#####????????????????? | | ###??????????????### ##???????????????? | | ## ##?????????##?## ##??????????????? | | #### ##???????## ## ##?????????????? | | #??#### ##??????# #?????????????? | | #?????## ##?????# #?????????????? | | ##??????# #####?## ##?????????????? | | ##???????# ### @ ###??????????????? | | ########### ## dd #????????????????? | | !|%* #?## ## % #????????????????? | | ####### #??# ## #????????????????? | | ??????# #??# ## # # #????????????????? | | ####### #### ##u ####### #????????????????? | | # #???# ? ????????????????? | | # #### #???# #?##???????????????? | | # #??## < #####???# #??????????????????? | | < # #???## #???????# #??????????????????? | | # ###### #???????# #??????????????????? | | """ ##???????# #??????????????????? | | """ ########## ##?????????????????? | | """ ########## #?????????????????? | | #???????## #?????????????????? | | #######??????## ########### ##????????????????? | | #??????????### #???????## ##???????????????? | | #####?????## ##??????## !#???????????????? | | ####### ##??????## [ #???????????????? | | #?????### ###########?????? | | """ #????## ! ##????? | | """ ###### ##????# ! % #????? | | # """ #?########?????#% ######## ### #??? | | ## ## ##?????????# ##?######*#????? #? | | ?## ##????????# ] #??# %[#?????????? | +----------------------------------------------------+ Best States ------------- Heat Dissipation 39 Energy Generation 14 Energy Capacity 250 Matter Stores 300 Matter Capacity 300 Sight Range 16 Terrain Scan Density 10 Evasion (%) 55 Recoil Reduction 2 Item Schematics ----------------- None Robot Schematics ------------------ None Fabricated ------------ Nothing Alien Tech Used ----------------- None Achievements -------------- None Challenges ------------ None Game ------ Seed SpikedMissileSuite Manual? 0 Play Time 00:07:42 Cumulative 315.9 hours Start 2022.06.10 @ 14:03:30 End 2022.06.10 @ 17:58:35 Sessions 3 Manual Loads 0 Difficulty Rogue Special Mode None Game No. 557 Rogue 402 Adventurer 148 Explorer 7 Win Type - Total 11 Types 9/0/1/1/0/0/0/0/0 Lore% 74 Gallery% 87 Achievement% 67 Wizard Run 0 Options --------- ASCII 0 Keyboard 0 Movement Numpad Keybinds 0 Fullscreen 1 Font 18/SmallcapsGlow Map View 76x50 Tactical HUD 1 Map Filters NONE Filters NONE Steam 1 RUN: 5b19e324-b7b2-476b-ab0c-5cc19d1f3490